fUST/lending_fUST_20250111
["ID","MTS","AMOUNT","RATE_DAILY","PERIOD"]
[348427377,1736525454198,-500.0,0.00021973,2]
[348427378,1736525454212,-500.0,0.00021973,2]
[348427379,1736525454226,-500.0,0.00021973,2]
[348427380,1736525454239,-500.0,0.00021973,2]
[348427381,1736525454253,-429.01732859,0.00021973,2]
[348427382,1736525454269,-501.79006166,0.00021973,2]
[348427383,1736525454282,-563.82099849,0.00021973,2]
[348427384,1736525454297,-162.57188596,0.00021973,2]
[348427385,1736525454312,-500.0,0.00021973,2]
[348427386,1736525454325,-500.0,0.00021973,2]
[348427387,1736525454344,-500.0,0.00021973,2]
[348427388,1736525454358,-129939.88486536,0.0002198,7]
[348427389,1736525454372,-15887.61235288,0.0002198,7]
[348427390,1736525454385,-151.0,0.0002198,7]
[348427391,1736525454399,-151.0,0.0002198,7]
[348427392,1736525454413,-151.0,0.0002198,7]
[348427393,1736525454426,-163.576263,0.0002198,7]
[348427394,1736525454439,-163.57626,0.0002198,7]
[348427395,1736525454453,-180.552038,0.0002198,7]
[348427396,1736525454467,-180.552038,0.0002198,7]
[348427397,1736525454479,-211.675373,0.0002198,2]
[348427398,1736525454494,-211.675373,0.0002198,2]
[348427399,1736525454507,-151.0,0.0002198,7]
[348427400,1736525454521,-2007.68874693,0.00022,10]
[348427401,1736525454534,-400.0,0.00022,4]
[348427402,1736525454547,-9783.0,0.00022,4]
[348427403,1736525454561,-10396.45580843,0.00022,7]
[348427404,1736525454574,-88362.39881284,0.00022,4]
[348427405,1736525454755,-151.0,0.00022,7]
[348427406,1736525454771,-151.0,0.00022,7]
[348427407,1736525454781,-8954.07,0.00022,14]
[348427408,1736525454791,-3984.19,0.00022,14]
[348427409,1736525454800,-11976.93,0.00022,2]
[348427410,1736525454810,-151.0,0.00022,7]
[348427411,1736525454820,-180.552038,0.00022,7]
[348427412,1736525454830,-180.55203,0.00022,7]
[348427413,1736525454842,-211.675373,0.00022,2]
[348427414,1736525454851,-211.675365,0.00022,2]
[348427415,1736525454860,-165.0,0.00022,2]
[348427416,1736525454870,-151.0,0.00022,7]
[348427417,1736525454880,-174.695304,0.00022055,2]
[348427418,1736525454889,-500.0,0.00022173,2]
[348427419,1736525454899,-797.79909179,0.0002218,2]
[348427420,1736525454908,-150.22,0.00022191,5]
[348427421,1736525454918,-279.58749667,0.00022191,5]
[348427422,1736525454927,-150.18,0.00022191,5]
[348427423,1736525454936,-150.34,0.00022191,5]
[348427424,1736525454946,-150.34,0.00022191,5]
[348427425,1736525454956,-150.18,0.00022191,5]
[348427426,1736525454966,-500.0,0.00022191,5]
[348427427,1736525454975,-500.0,0.00022191,5]
[348427428,1736525454985,-266.843336,0.00022191,7]
[348427429,1736525454994,-504.35911954,0.00022191,3]
[348427430,1736525455004,-500.0,0.00022191,3]
[348427431,1736525455014,-500.0,0.00022191,3]
[348427432,1736525455023,-500.0,0.00022191,3]
[348427433,1736525455033,-610.20781306,0.00022191,3]
[348427434,1736525455043,-506.58552721,0.00022191,3]
[348427435,1736525455053,-500.0,0.00022191,3]
[348427436,1736525455063,-501.74422358,0.00022191,3]
[348427437,1736525455072,-501.19000265,0.00022191,3]
[348427438,1736525455085,-501.55696237,0.00022191,3]
[348427439,1736525455095,-500.83478052,0.00022191,3]
[348427440,1736525455104,-500.0,0.00022191,3]
[348427441,1736525455114,-515.01118554,0.00022191,3]
[348427442,1736525455123,-500.0,0.00022191,3]
[348427443,1736525455133,-500.0,0.00022191,3]
[348427444,1736525455143,-502.20027122,0.00022191,3]
[348427445,1736525455153,-502.18273555,0.00022191,3]
[348427446,1736525455163,-500.0,0.00022191,3]
[348427447,1736525455172,-500.0,0.00022191,3]
[348427448,1736525455181,-500.0,0.00022191,3]
[348427449,1736525455191,-593.94217641,0.00022191,3]
[348427450,1736525455200,-343.571641,0.00022191,3]
[348427451,1736525455210,-500.0,0.00022191,3]
[348427452,1736525455219,-500.0,0.00022191,3]
[348427453,1736525455230,-500.0,0.00022191,3]
[348427454,1736525455240,-500.0,0.00022191,3]
[348427455,1736525455249,-500.0,0.00022191,3]
[348427456,1736525455260,-500.0,0.00022191,3]
[348427457,1736525455271,-500.0,0.00022191,3]
[348427458,1736525455280,-501.89889317,0.00022191,3]
[348427459,1736525455290,-500.0,0.00022191,3]
[348427460,1736525455300,-500.88763804,0.00022191,3]
[348427461,1736525455310,-500.0,0.00022191,3]
[348427462,1736525455319,-503.42629133,0.00022191,3]
[348427463,1736525455329,-500.0,0.00022191,3]
[348427464,1736525455343,-370.58687512,0.00022191,3]
[348427465,1736525455354,-500.0,0.00022191,3]
[348427466,1736525455365,-500.0,0.00022191,3]
[348427467,1736525455375,-500.0,0.00022191,3]
[348427468,1736525455386,-500.0,0.00022191,3]
[348427469,1736525455396,-500.0,0.00022191,3]
[348427470,1736525455406,-500.0,0.00022191,3]
[348427471,1736525455416,-502.1687269,0.00022191,3]
[348427472,1736525455425,-500.0,0.00022191,3]
[348427473,1736525455436,-500.0,0.00022191,3]
[348427474,1736525455446,-500.0,0.00022191,3]
[348427475,1736525455455,-500.0,0.00022191,3]
[348427476,1736525455466,-214.26979149,0.00022191,3]
[348427477,1736525455476,-500.0,0.00022191,3]
[348427478,1736525455486,-501.35678864,0.00022191,3]
[348427479,1736525455495,-500.0,0.00022191,3]
[348427480,1736525455505,-502.86432219,0.00022191,3]
[348427481,1736525455515,-500.0,0.00022191,3]
[348427482,1736525455525,-502.45400351,0.00022191,3]
[348427483,1736525455535,-500.0,0.00022191,3]
[348427484,1736525455545,-500.0,0.00022191,3]
[348427485,1736525455555,-500.0,0.00022191,3]
[348427486,1736525455565,-500.0,0.00022191,3]
[348427487,1736525455575,-500.0,0.00022191,3]
[348427488,1736525455588,-547.51316187,0.00022191,3]
[348427489,1736525455597,-502.02685271,0.00022191,3]
[348427490,1736525455607,-500.0,0.00022191,3]
[348427491,1736525455616,-500.0,0.00022191,3]
[348427492,1736525455626,-500.0,0.00022191,3]
[348427493,1736525455636,-500.0,0.00022191,3]
[348427494,1736525455646,-500.0,0.00022191,3]
[348427495,1736525455656,-500.0,0.00022191,3]
[348427496,1736525455665,-500.0,0.00022191,3]
[348427497,1736525455675,-188.0,0.00022191,2]
[348427498,1736525455686,-500.0,0.00022191,3]
[348427499,1736525455697,-500.0,0.00022191,3]
[348427500,1736525455707,-502.3578938,0.00022191,3]
[348427501,1736525455717,-500.0,0.00022191,3]
[348427502,1736525455729,-500.0,0.00022191,3]
[348427503,1736525455741,-500.0,0.00022191,3]
[348427504,1736525455751,-500.0,0.00022191,3]
[348427505,1736525455761,-151.0,0.00022191,7]
[348427506,1736525455773,-500.0,0.00022191,3]
[348427507,1736525455782,-500.0,0.00022191,3]
[348427508,1736525455793,-506.38949308,0.00022191,3]
[348427509,1736525455803,-580.14051021,0.00022191,3]
[348427510,1736525455813,-500.0,0.00022191,3]
[348427511,1736525455825,-500.0,0.00022191,3]
[348427512,1736525455838,-507.55275241,0.00022191,3]
[348427513,1736525455847,-500.0,0.00022191,3]
[348427514,1736525455858,-500.0,0.00022191,3]
[348427515,1736525455867,-500.0,0.00022191,3]
[348427516,1736525455877,-500.0,0.00022191,3]
[348427517,1736525455886,-202.82294609,0.00022191,3]
[348427518,1736525455896,-502.56919523,0.00022191,3]
[348427519,1736525455906,-500.0,0.00022191,3]
[348427520,1736525455917,-500.0,0.00022191,3]
[348427521,1736525455927,-526.57893342,0.00022191,3]
[348427522,1736525455936,-500.0,0.00022191,3]
[348427523,1736525455946,-500.0,0.00022191,3]
[348427524,1736525455956,-500.0,0.00022191,3]
[348427525,1736525455965,-501.3852291,0.00022191,3]
[348427526,1736525455975,-504.3907195,0.00022191,3]
[348427527,1736525455985,-503.01715529,0.00022191,3]
[348427528,1736525455994,-500.0,0.00022191,3]
[348427529,1736525456004,-502.0667273,0.00022191,3]
[348427530,1736525456014,-500.0,0.00022191,3]
[348427531,1736525456023,-500.0,0.00022191,3]
[348427532,1736525456033,-508.04202133,0.00022191,3]
[348427533,1736525456044,-501.6546998,0.00022191,3]
[348427534,1736525456055,-500.0,0.00022191,3]
[348427535,1736525456065,-500.0,0.00022191,3]
[348427536,1736525456075,-537.02337068,0.00022191,3]
[348427537,1736525456085,-500.0,0.00022191,3]
[348427538,1736525456094,-504.3685455,0.00022191,3]
[348427539,1736525456103,-500.0,0.00022191,3]
[348427540,1736525456113,-500.0,0.00022191,3]
[348427541,1736525456122,-500.00000001,0.00022191,3]
[348427542,1736525456132,-180.37373286,0.00022191,3]
[348427543,1736525456143,-500.0,0.00022191,3]
[348427544,1736525456153,-507.71562901,0.00022191,3]
[348427545,1736525456163,-500.0,0.00022191,3]
[348427546,1736525456173,-500.0,0.00022191,3]
[348427547,1736525456183,-606.03511982,0.00022191,3]
[348427548,1736525456192,-500.0,0.00022191,3]
[348427549,1736525456201,-500.0,0.00022191,3]
[348427550,1736525456211,-502.55120232,0.00022191,3]
[348427551,1736525456220,-502.9169109,0.00022191,3]
[348427552,1736525456230,-500.0,0.00022191,3]
[348427553,1736525456239,-500.0,0.00022191,3]
[348427554,1736525456249,-553.09747281,0.00022191,3]
[348427555,1736525456263,-500.0,0.00022191,3]
[348427556,1736525456273,-500.0,0.00022191,3]
[348427557,1736525456283,-500.0,0.00022191,3]
[348427558,1736525456293,-500.0,0.00022191,3]
[348427559,1736525456303,-506.95447425,0.00022191,3]
[348427560,1736525456313,-501.42289021,0.00022191,3]
[348427561,1736525456322,-500.0,0.00022191,3]
[348427562,1736525456332,-500.0,0.00022191,3]
[348427563,1736525456344,-500.0,0.00022191,3]
[348427564,1736525456355,-500.0,0.00022191,3]
[348427565,1736525456365,-251.61915138,0.00022191,3]
[348427566,1736525456374,-500.0,0.00022191,3]
[348427567,1736525456384,-500.0,0.00022191,3]
[348427568,1736525456393,-500.0,0.00022191,3]
[348427569,1736525456403,-500.0,0.00022191,3]
[348427570,1736525456413,-500.0,0.00022191,3]
[348427571,1736525456422,-500.0,0.00022191,3]
[348427572,1736525456432,-285.62038855,0.00022191,2]
[348427573,1736525456442,-500.0,0.00022191,3]
[348427574,1736525456452,-500.0,0.00022191,3]
[348427575,1736525456461,-500.0,0.00022191,3]
[348427576,1736525456471,-500.0,0.00022191,3]
[348427577,1736525456480,-500.0,0.00022191,3]
[348427578,1736525456489,-500.0,0.00022191,3]
[348427579,1736525456499,-500.0,0.00022191,3]
[348427580,1736525456508,-500.0,0.00022191,3]
[348427581,1736525456518,-500.0,0.00022191,3]
[348427582,1736525456528,-500.0,0.00022191,3]
[348427583,1736525456539,-500.0,0.00022191,3]
[348427584,1736525456550,-500.0,0.00022191,3]
[348427585,1736525456561,-500.0,0.00022191,3]
[348427586,1736525456573,-500.0,0.00022191,3]
[348427587,1736525456585,-500.0,0.00022191,3]
[348427588,1736525456595,-500.0,0.00022191,3]
[348427589,1736525456604,-500.0,0.00022191,3]
[348427590,1736525456613,-500.0,0.00022191,3]
[348427591,1736525456623,-505.10590633,0.00022191,3]
[348427592,1736525456632,-538.97,0.00022191,3]
[348427593,1736525456643,-500.0,0.00022191,3]
[348427594,1736525456653,-500.0,0.00022191,3]
[348427595,1736525456663,-500.0,0.00022191,3]
[348427596,1736525456675,-500.0,0.00022191,3]
[348427597,1736525456685,-502.14601316,0.00022191,3]
[348427598,1736525456695,-500.0,0.00022191,3]
[348427599,1736525456705,-501.19618669,0.00022191,3]
[348427600,1736525456715,-514.89674656,0.00022191,3]
[348427601,1736525456725,-500.0,0.00022191,3]
[348427602,1736525456734,-501.23172591,0.00022191,3]
[348427603,1736525456745,-500.0,0.00022191,3]
[348427604,1736525456756,-500.0,0.00022191,3]
[348427605,1736525456765,-500.0,0.00022191,3]
[348427606,1736525456774,-511.8672825,0.00022191,3]
[348427607,1736525456784,-500.0,0.00022191,3]
[348427608,1736525456793,-500.0,0.00022191,3]
[348427609,1736525456804,-500.0,0.00022191,3]
[348427610,1736525456815,-216.73874609,0.00022191,3]
[348427611,1736525456826,-500.0,0.00022191,3]
[348427612,1736525456837,-500.0,0.00022191,3]
[348427613,1736525456969,-500.0,0.00022191,3]
[348427614,1736525456980,-500.14672999,0.00022191,3]
[348427615,1736525456991,-500.98093457,0.00022191,3]
[348427616,1736525457001,-500.0,0.00022191,3]
[348427617,1736525457010,-500.0,0.00022191,3]
[348427618,1736525457020,-508.62427693,0.00022191,3]
[348427619,1736525457030,-500.0,0.00022191,3]
[348427620,1736525457039,-503.36476408,0.00022191,3]
[348427621,1736525457049,-500.0,0.00022191,3]
[348427622,1736525457059,-478.37586935,0.00022191,3]
[348427623,1736525457068,-1000.0,0.00022191,3]
[348427624,1736525457078,-500.0,0.00022191,3]
[348427625,1736525457091,-500.0,0.00022191,3]
[348427626,1736525457101,-500.0,0.00022191,3]
[348427627,1736525457112,-500.0,0.00022191,3]
[348427628,1736525457122,-500.0,0.00022191,3]
[348427629,1736525457132,-500.0,0.00022191,3]
[348427630,1736525457142,-500.0,0.00022191,3]
[348427631,1736525457151,-500.0,0.00022191,3]
[348427632,1736525457161,-500.0,0.00022191,3]
[348427633,1736525457171,-500.0,0.00022191,3]
[348427634,1736525457180,-500.0,0.00022191,3]
[348427635,1736525457190,-502.5609407,0.00022191,3]
[348427636,1736525457200,-500.0,0.00022191,3]
[348427637,1736525457211,-514.52056742,0.00022191,3]
[348427638,1736525457221,-500.0,0.00022191,3]
[348427639,1736525457230,-200.0,0.00022191,3]
[348427640,1736525457240,-500.0,0.00022191,3]
[348427641,1736525457250,-500.0,0.00022191,3]
[348427642,1736525457263,-1058.54,0.00022191,3]
[348427643,1736525457273,-248.54920282,0.00022191,3]
[348427644,1736525457283,-537.80176353,0.00022191,3]
[348427645,1736525457292,-502.72850208,0.00022191,3]
[348427646,1736525457302,-500.0,0.00022191,3]
[348427647,1736525457312,-500.0,0.00022191,3]
[348427648,1736525457322,-500.0,0.00022191,3]
[348427649,1736525457331,-500.0,0.00022191,3]
[348427650,1736525457345,-500.0,0.00022191,3]
[348427651,1736525457355,-500.68518524,0.00022191,3]
[348427652,1736525457364,-783.09,0.00022191,3]
[348427653,1736525457374,-500.0,0.00022191,3]
[348427654,1736525457383,-500.0,0.00022191,3]
[348427655,1736525457393,-500.0,0.00022191,3]
[348427656,1736525457403,-500.0,0.00022191,3]
[348427657,1736525457412,-500.0,0.00022191,3]
[348427658,1736525457421,-500.0,0.00022191,3]
[348427659,1736525457431,-500.0,0.00022191,3]
[348427660,1736525457443,-500.0,0.00022191,3]
[348427661,1736525457454,-500.0,0.00022191,3]
[348427662,1736525457465,-500.0,0.00022191,3]
[348427663,1736525457475,-500.0,0.00022191,3]
[348427664,1736525457486,-500.0,0.00022191,3]
[348427665,1736525457496,-500.0,0.00022191,3]
[348427666,1736525457506,-500.0,0.00022191,3]
[348427667,1736525457516,-500.0,0.00022191,3]
[348427668,1736525457526,-500.0,0.00022191,3]
[348427669,1736525457537,-500.0,0.00022191,3]
[348427670,1736525457547,-500.0,0.00022191,3]
[348427671,1736525457557,-500.0,0.00022191,3]
[348427672,1736525457569,-500.0,0.00022191,3]
[348427673,1736525457579,-500.0,0.00022191,3]
[348427674,1736525457590,-500.0,0.00022191,3]
[348427675,1736525457600,-500.0,0.00022191,3]
[348427676,1736525457610,-500.0,0.00022191,3]
[348427677,1736525457620,-502.57566919,0.00022191,3]
[348427678,1736525457630,-500.0,0.00022191,3]
[348427679,1736525457641,-500.0,0.00022191,3]
[348427680,1736525457651,-1070.72,0.00022191,3]
[348427681,1736525457661,-500.0,0.00022191,3]
[348427682,1736525457671,-500.0,0.00022191,3]
[348427683,1736525457681,-500.0,0.00022191,3]
[348427684,1736525457690,-392.15526256,0.00022191,3]
[348427685,1736525457701,-503.91827561,0.00022191,3]
[348427686,1736525457711,-500.0,0.00022191,3]
[348427687,1736525457721,-500.0,0.00022191,3]
[348427688,1736525457731,-500.0,0.00022191,3]
[348427689,1736525457741,-500.0,0.00022191,3]
[348427690,1736525457750,-500.0,0.00022191,3]
[348427691,1736525457761,-500.0,0.00022191,3]
[348427692,1736525457772,-500.0,0.00022191,3]
[348427693,1736525457783,-500.0,0.00022191,3]
[348427694,1736525457793,-507.12143138,0.00022191,3]
[348427695,1736525457802,-511.12710912,0.00022191,3]
[348427696,1736525457811,-500.0,0.00022191,3]
[348427697,1736525457821,-505.05854635,0.00022191,3]
[348427698,1736525457831,-500.0,0.00022191,3]
[348427699,1736525457844,-549.48,0.00022191,3]
[348427700,1736525457853,-501.69170202,0.00022191,3]
[348427701,1736525457862,-500.0,0.00022191,3]
[348427702,1736525457872,-962.24,0.00022191,3]
[348427703,1736525457881,-539.34,0.00022191,3]
[348427704,1736525457891,-500.0,0.00022191,3]
[348427705,1736525457902,-500.0,0.00022191,3]
[348427706,1736525457911,-571.19,0.00022191,3]
[348427707,1736525457922,-505.82298352,0.00022191,3]
[348427708,1736525457931,-500.0,0.00022191,3]
[348427709,1736525457942,-500.0,0.00022191,3]
[348427710,1736525457953,-578.36743964,0.00022191,3]
[348427711,1736525457964,-500.0,0.00022191,3]
[348427712,1736525457975,-500.0,0.00022191,3]
[348427713,1736525457987,-500.0,0.00022191,3]
[348427714,1736525457998,-500.0,0.00022191,3]
[348427715,1736525458009,-500.0,0.00022191,3]
[348427716,1736525458018,-500.0,0.00022191,3]
[348427717,1736525458028,-500.0,0.00022191,3]
[348427718,1736525458037,-500.0,0.00022191,3]
[348427719,1736525458046,-500.0,0.00022191,3]
[348427720,1736525458057,-501.82862106,0.00022191,3]
[348427721,1736525458067,-500.0,0.00022191,3]
[348427722,1736525458076,-500.0,0.00022191,3]
[348427723,1736525458089,-500.0,0.00022191,3]
[348427724,1736525458099,-500.0,0.00022191,3]
[348427725,1736525458109,-500.0,0.00022191,3]
[348427726,1736525458119,-500.0,0.00022191,3]
[348427727,1736525458129,-500.0,0.00022191,3]
[348427728,1736525458139,-500.0,0.00022191,3]
[348427729,1736525458150,-500.0,0.00022191,3]
[348427730,1736525458161,-501.87204773,0.00022191,3]
[348427731,1736525458171,-500.0,0.00022191,3]
[348427732,1736525458182,-500.0,0.00022191,3]
[348427733,1736525458192,-500.0,0.00022191,3]
[348427734,1736525458201,-500.0,0.00022191,3]
[348427735,1736525458211,-500.0,0.00022191,3]
[348427736,1736525458220,-500.0,0.00022191,3]
[348427737,1736525458230,-500.0,0.00022191,3]
[348427738,1736525458239,-500.0,0.00022191,3]
[348427739,1736525458248,-466.36031094,0.00022191,3]
[348427740,1736525458259,-8270.29,0.00022191,3]
[348427741,1736525458271,-500.0,0.00022191,3]
[348427742,1736525458281,-500.0,0.00022191,3]
[348427743,1736525458291,-510.28547972,0.00022191,3]
[348427744,1736525458304,-500.0,0.00022191,3]
[348427745,1736525458314,-500.0,0.00022191,3]
[348427746,1736525458323,-500.0,0.00022191,3]
[348427747,1736525458335,-500.0,0.00022191,3]
[348427748,1736525458346,-500.0,0.00022191,3]
[348427749,1736525458355,-500.0,0.00022191,3]
[348427750,1736525458365,-500.0,0.00022191,3]
[348427751,1736525458374,-500.0,0.00022191,3]
[348427752,1736525458385,-500.0,0.00022191,3]
[348427753,1736525458395,-500.0,0.00022191,3]
[348427754,1736525458406,-512.1,0.00022191,3]
[348427755,1736525458416,-500.0,0.00022191,3]
[348427756,1736525458425,-500.0,0.00022191,3]
[348427757,1736525458437,-500.0,0.00022191,3]
[348427758,1736525458446,-500.0,0.00022191,3]
[348427759,1736525458456,-500.0,0.00022191,3]
[348427760,1736525458467,-500.0,0.00022191,3]
[348427761,1736525458478,-500.0,0.00022191,3]
[348427762,1736525458488,-500.0,0.00022191,3]
[348427763,1736525458498,-500.0,0.00022191,3]
[348427764,1736525458509,-504.38166648,0.00022191,3]
[348427765,1736525458519,-500.0,0.00022191,3]
[348427766,1736525458532,-500.0,0.00022191,3]
[348427767,1736525458543,-500.0,0.00022191,3]
[348427768,1736525458554,-500.0,0.00022191,3]
[348427769,1736525458564,-500.0,0.00022191,3]
[348427770,1736525458574,-500.0,0.00022191,3]
[348427771,1736525458586,-602.29,0.00022191,3]
[348427772,1736525458596,-500.0,0.00022191,3]
[348427773,1736525458606,-501.24250611,0.00022191,3]
[348427774,1736525458615,-500.0,0.00022191,3]
[348427775,1736525458624,-500.0,0.00022191,3]
[348427776,1736525458633,-500.0,0.00022191,3]
[348427777,1736525458643,-500.0,0.00022191,3]
[348427778,1736525458653,-508.93103507,0.00022191,3]
[348427779,1736525458664,-500.0,0.00022191,3]
[348427780,1736525458675,-658.6,0.00022191,3]
[348427781,1736525458688,-500.0,0.00022191,3]
[348427782,1736525458699,-500.0,0.00022191,3]
[348427783,1736525458708,-500.0,0.00022191,3]
[348427784,1736525458719,-500.0,0.00022191,3]
[348427785,1736525458728,-1023.91,0.00022191,2]
[348427786,1736525458738,-512.59,0.00022191,3]
[348427787,1736525458748,-558.38540591,0.00022191,3]
[348427788,1736525458758,-500.0,0.00022191,3]
[348427789,1736525458767,-500.0,0.00022191,3]
[348427790,1736525458776,-500.0,0.00022191,3]
[348427791,1736525458786,-500.0,0.00022191,3]
[348427792,1736525458796,-500.0,0.00022191,3]
[348427793,1736525458807,-500.0,0.00022191,3]
[348427794,1736525458818,-500.0,0.00022191,3]
[348427795,1736525458827,-500.0,0.00022191,3]
[348427796,1736525458839,-500.0,0.00022191,3]
[348427797,1736525458860,-500.0,0.00022191,3]
[348427798,1736525458870,-500.0,0.00022191,3]
[348427799,1736525458882,-500.0,0.00022191,3]
[348427800,1736525458892,-500.0,0.00022191,3]
[348427801,1736525458901,-500.0,0.00022191,3]
[348427802,1736525458912,-500.0,0.00022191,3]
[348427803,1736525458923,-500.0,0.00022191,3]
[348427804,1736525459047,-500.0,0.00022191,3]
[348427805,1736525459059,-500.0,0.00022191,3]
[348427806,1736525459068,-500.0,0.00022191,3]
[348427807,1736525459078,-500.0,0.00022191,3]
[348427808,1736525459088,-952.7,0.00022191,3]
[348427809,1736525459098,-500.0,0.00022191,3]
[348427810,1736525459108,-500.0,0.00022191,3]
[348427811,1736525459117,-500.0,0.00022191,3]
[348427812,1736525459128,-500.0,0.00022191,3]
[348427813,1736525459138,-500.0,0.00022191,3]
[348427814,1736525459149,-546.74231026,0.00022191,3]
[348427815,1736525459159,-506.57616347,0.00022191,3]
[348427816,1736525459169,-500.0,0.00022191,3]
[348427817,1736525459180,-500.0,0.00022191,3]
[348427818,1736525459190,-500.0,0.00022191,3]
[348427819,1736525459200,-500.0,0.00022191,3]
[348427820,1736525459210,-500.0,0.00022191,3]
[348427821,1736525459219,-500.0,0.00022191,3]
[348427822,1736525459229,-500.0,0.00022191,3]
[348427823,1736525459239,-500.0,0.00022191,3]
[348427824,1736525459249,-500.0,0.00022191,3]
[348427825,1736525459260,-500.0,0.00022191,3]
[348427826,1736525459271,-500.0,0.00022191,3]
[348427827,1736525459281,-500.0,0.00022191,3]
[348427828,1736525459290,-500.0,0.00022191,3]
[348427829,1736525459300,-3191.18,0.00022191,3]
[348427830,1736525459311,-601.15,0.00022191,3]
[348427831,1736525459320,-500.0,0.00022191,3]
[348427832,1736525459331,-795.26,0.00022191,3]
[348427833,1736525459344,-500.0,0.00022191,3]
[348427834,1736525459353,-500.0,0.00022191,3]
[348427835,1736525459363,-501.17601109,0.00022191,3]
[348427836,1736525459372,-500.0,0.00022191,3]
[348427837,1736525459382,-500.0,0.00022191,3]
[348427838,1736525459391,-689.85,0.00022191,3]
[348427839,1736525459401,-500.0,0.00022191,3]
[348427840,1736525459410,-500.0,0.00022191,3]
[348427841,1736525459420,-500.0,0.00022191,3]
[348427842,1736525459430,-573.69,0.00022191,3]
[348427843,1736525459440,-569.96446552,0.00022191,3]
[348427844,1736525459450,-500.0,0.00022191,3]
[348427845,1736525459461,-500.0,0.00022191,3]
[348427846,1736525459472,-500.0,0.00022191,3]
[348427847,1736525459482,-501.22957013,0.00022191,3]
[348427848,1736525459492,-500.31992224,0.00022191,3]
[348427849,1736525459502,-500.0,0.00022191,3]
[348427850,1736525459512,-500.0,0.00022191,3]
[348427851,1736525459523,-500.0,0.00022191,3]
[348427852,1736525459534,-500.0,0.00022191,3]
[348427853,1736525459545,-767.35,0.00022191,3]
[348427854,1736525459555,-500.0,0.00022191,3]
[348427855,1736525459565,-500.0,0.00022191,3]
[348427856,1736525459575,-501.78840366,0.00022191,3]
[348427857,1736525459586,-500.0,0.00022191,3]
[348427858,1736525459595,-500.0,0.00022191,3]
[348427859,1736525459605,-501.3606596,0.00022191,2]
[348427860,1736525459614,-500.0,0.00022191,3]
[348427861,1736525459624,-500.0,0.00022191,3]
[348427862,1736525459633,-500.0,0.00022191,3]
[348427863,1736525459643,-502.81989067,0.00022191,3]
[348427864,1736525459652,-500.0,0.00022191,3]
[348427865,1736525459662,-500.0,0.00022191,3]
[348427866,1736525459672,-500.0,0.00022191,3]
[348427867,1736525459681,-500.0,0.00022191,3]
[348427868,1736525459690,-500.0,0.00022191,3]
[348427869,1736525459700,-500.0,0.00022191,3]
[348427870,1736525459709,-500.0,0.00022191,3]
[348427871,1736525459719,-580.2468322,0.00022191,3]
[348427872,1736525459728,-500.0,0.00022191,3]
[348427873,1736525459737,-500.0,0.00022191,3]
[348427874,1736525459747,-583.33,0.00022191,3]
[348427875,1736525459756,-500.0,0.00022191,3]
[348427876,1736525459765,-507.16255691,0.00022191,3]